fUSD/lending_fUSD_20251102
["ID","MTS","AMOUNT","RATE_DAILY","PERIOD"]
[392902362,1762118972232,375.98464011,0.00030136,120]
[392902364,1762118972695,500.0,0.00030136,120]
[392902366,1762118975005,522.26,0.00030136,120]
[392902367,1762118975075,500.0,0.00030136,120]
[392902369,1762118976060,703.85,0.00030136,120]
[392902370,1762118977407,551.76,0.00030136,120]
[392902371,1762118978306,500.0,0.00030136,120]
[392902372,1762118978711,500.0,0.00030136,120]
[392902373,1762118979298,500.0,0.00030136,120]
[392902374,1762118979368,500.0,0.00030136,120]
[392902375,1762118980094,500.0,0.00030136,120]
[392902376,1762118980855,501.26337319,0.00030136,120]
[392902377,1762118981213,500.0,0.00030136,120]
[392902378,1762118981913,690.03,0.00030136,120]
[392902379,1762118982812,304.86874478,0.00030136,120]
[392902380,1762118983228,228.14369834,0.00030136,120]
[392902381,1762118983296,500.0,0.00030136,120]
[392902382,1762118984718,166.66,0.00014377,2]
[392902383,1762118985268,500.0,0.00030136,120]
[392902384,1762118987543,500.0,0.00030136,120]
[392902386,1762118988552,500.0,0.00030136,120]
[392902388,1762118989033,500.0,0.00030136,120]
[392902389,1762118989516,500.0,0.00030136,120]
[392902390,1762118990528,500.0,0.00030136,120]
[392902392,1762118990910,500.0,0.00030136,120]
[392902393,1762118991034,500.0,0.00030136,120]
[392902394,1762118991215,500.0,0.00030136,120]
[392902395,1762118992226,500.0,0.00030136,120]
[392902396,1762118992301,500.0,0.00030136,120]
[392902397,1762118992834,283.41769237,0.00030136,120]
[392902398,1762118994023,722.43,0.00030136,120]
[392902399,1762118994087,500.0,0.00030136,120]
[392902400,1762118994231,500.0,0.00030136,120]
[392902401,1762118995515,500.0,0.00030136,120]
[392902402,1762118996184,500.0,0.00030136,120]
[392902403,1762118997064,500.0,0.00030136,120]
[392902404,1762118997222,500.0,0.00030136,120]
[392902405,1762118997966,500.0,0.00030136,120]
[392902406,1762118998841,500.0,0.00030136,120]
[392902407,1762118999277,152.04027822,0.00030136,120]
[392902408,1762118999680,500.0,0.00030136,120]
[392902410,1762119001193,500.0,0.00030136,120]
[392902411,1762119001270,500.0,0.00030136,120]
[392902412,1762119001636,500.0,0.00030136,120]
[392902417,1762119002565,500.0,0.00030136,120]
[392902418,1762119002647,500.0,0.00030136,120]
[392902420,1762119004829,500.0,0.00030136,120]
[392902421,1762119006371,500.0,0.00030136,120]
[392902422,1762119006486,500.0,0.00030136,120]
[392902423,1762119006570,500.0,0.00030136,120]
[392902424,1762119007718,500.0,0.00030136,120]
[392902426,1762119008398,500.0,0.00030136,120]
[392902427,1762119008558,500.0,0.00030136,120]
[392902428,1762119008757,500.0,0.00030136,120]
[392902431,1762119010860,500.0,0.00030136,120]
[392902432,1762119011226,500.0,0.00030136,120]
[392902433,1762119011292,500.0,0.00030136,120]
[392902434,1762119011490,500.0,0.00030136,120]
[392902437,1762119012920,500.0,0.00030136,120]
[392902438,1762119013005,543.81665959,0.00030136,120]
[392902439,1762119013749,500.0,0.00030136,120]
[392902441,1762119014769,500.0,0.00030136,120]
[392902442,1762119015165,699.5,0.00030136,120]
[392902443,1762119015246,543.7640716,0.00030136,120]
[392902444,1762119016134,200.0,0.00013986,2]
[392902445,1762119016214,500.0,0.00030136,120]
[392902447,1762119016397,500.0,0.00030136,120]
[392902448,1762119016735,500.0,0.00030136,120]
[392902449,1762119017154,500.0,0.00030136,120]
[392902450,1762119017633,500.0,0.00030136,120]
[392902451,1762119019102,500.0,0.00030136,120]
[392902452,1762119019687,601.7924068,0.00030136,120]
[392902454,1762119020514,692.14,0.00030136,120]
[392902455,1762119020599,500.0,0.00030136,120]
[392902456,1762119021696,500.0,0.00030136,120]
[392902457,1762119021762,687.61,0.00030136,120]
[392902458,1762119022427,500.0,0.00030136,120]
[392902459,1762119022736,500.0,0.00030136,120]
[392902460,1762119023814,500.0,0.00030136,120]
[392902461,1762119023890,500.0,0.00030136,120]
[392902462,1762119023999,651.0,0.00030136,120]
[392902463,1762119024136,639.66131371,0.00030136,120]
[392902464,1762119024449,500.0,0.00030136,120]
[392902465,1762119024797,500.0,0.00030136,120]
[392902466,1762119026067,987.39,0.00030136,120]
[392902467,1762119026141,168.0,0.00014239,2]
[392902468,1762119026354,500.0,0.00030136,120]
[392902469,1762119026606,500.0,0.00030136,120]
[392902470,1762119028071,152.45344224,0.00030136,120]
[392902471,1762119028548,500.0,0.00030136,120]
[392902472,1762119028705,686.33,0.00030136,120]
[392902473,1762119029775,500.0,0.00030136,120]
[392902474,1762119030407,500.0,0.00030136,120]
[392902475,1762119030575,467.61274852,0.00030136,120]
[392902476,1762119031440,206.22069068,0.00030136,120]
[392902478,1762119031520,500.0,0.00030136,120]
[392902489,1762119031635,500.0,0.00030136,120]
[392902500,1762119031704,-335.349535,0.00014598,2]
[392902503,1762119031927,-557.86805891,0.00014598,2]
[392902504,1762119031936,-221.66766337,0.00014617,2]
[392902505,1762119031946,-475.30266823,0.00014624,2]
[392902506,1762119031955,-168.0,0.00014629,2]
[392902507,1762119031964,-200.0,0.00014791,2]
[392902508,1762119031974,-75.46343681,0.00014791,2]
[392902617,1762119033049,500.0,0.00030136,120]
[392902706,1762119033876,500.0,0.00030136,120]
[392902721,1762119034012,500.0,0.00030136,120]
[392902754,1762119034587,500.0,0.00030136,120]
[392902755,1762119034664,500.0,0.00030136,120]
[392902756,1762119035528,500.0,0.00030136,120]
[392902757,1762119035862,500.0,0.00030136,120]
[392902758,1762119035933,500.0,0.00030136,120]
[392902759,1762119036339,500.0,0.00030136,120]
[392902760,1762119036413,500.0,0.00030136,120]
[392902761,1762119037760,500.0,0.00030136,120]
[392902762,1762119037780,-421.00783483,0.00014791,2]
[392902763,1762119037790,-400.0,0.00014795,2]
[392902764,1762119037803,-300.0,0.00014795,2]
[392902765,1762119037814,-1200.0,0.00014795,2]
[392902766,1762119037825,-300.0,0.00014795,2]
[392902767,1762119037837,-150.99,0.00014796,2]
[392902768,1762119037847,-9999.99,0.00014796,2]
[392902769,1762119037856,-1091.45,0.00014796,2]
[392902770,1762119037866,-299.99,0.00014796,2]
[392902771,1762119037875,-151.0,0.00014797,2]
[392902772,1762119037885,-151.0,0.00014797,2]
[392902773,1762119037896,-150.0,0.00014798,2]
[392902774,1762119037906,-500.0,0.00014799,2]
[392902775,1762119037916,-500.0,0.00014799,2]
[392902776,1762119037926,-500.0,0.00014799,2]
[392902777,1762119037936,-500.0,0.00014799,2]
[392902778,1762119037946,-500.0,0.00014799,2]
[392902779,1762119037956,-500.0,0.00014799,2]
[392902780,1762119037966,-500.0,0.00014799,2]
[392902781,1762119037976,-500.0,0.00014799,2]
[392902782,1762119037985,-500.0,0.00014799,2]
[392902783,1762119037995,-500.0,0.00014799,2]
[392902784,1762119038006,-500.0,0.00014799,2]
[392902785,1762119038016,-500.0,0.00014799,2]
[392902786,1762119038026,-500.0,0.00014799,2]
[392902787,1762119038040,-500.0,0.00014799,2]
[392902788,1762119038050,-500.0,0.00014799,2]
[392902789,1762119038060,-500.0,0.00014799,2]
[392902790,1762119038070,-500.0,0.00014799,2]
[392902791,1762119038080,-500.0,0.00014799,2]
[392902792,1762119038090,-500.0,0.00014799,2]
[392902793,1762119038100,-500.0,0.00014799,2]
[392902794,1762119038110,-500.0,0.00014799,2]
[392902795,1762119038120,-500.0,0.00014799,2]
[392902796,1762119038130,-500.0,0.00014799,2]
[392902797,1762119038140,-500.0,0.00014799,2]
[392902798,1762119038150,-187.2240883,0.00014799,2]
[392902799,1762119038165,-500.0,0.00014799,2]
[392902800,1762119038175,-500.0,0.00014799,2]
[392902801,1762119038186,-350.0,0.00014799,2]
[392902802,1762119038196,-500.0,0.00014799,2]
[392902803,1762119038206,-1058.54,0.00014799,2]
[392902804,1762119038216,-166.90410116,0.00014799,2]
[392902805,1762119038227,-500.0,0.00014799,2]
[392902806,1762119038242,-165.58880922,0.00014799,2]
[392902807,1762119038253,-2548.6534,0.000148,2]
[392902808,1762119038264,-160731.6591,0.000148,2]
[392902809,1762119038275,-2500.0,0.000148,2]
[392902810,1762119038286,-168.0,0.00014897,2]
[392902811,1762119038297,-1118.0,0.000149,2]
[392902812,1762119038307,-164.86358554,0.000149,2]
[392902813,1762119038318,-1000.0,0.000149,2]
[392902814,1762119038330,-5000.0,0.000149,2]
[392902815,1762119038340,-9410.77612179,0.000149,2]
[392902816,1762119038352,-484.23195786,0.000149,2]
[392902817,1762119038362,-189.85552169,0.000149,2]
[392902818,1762119038373,-152.19610636,0.000149,2]
[392902819,1762119038384,-477.45087779,0.00014946,2]
[392902820,1762119038394,-168.0,0.00014965,2]
[392902821,1762119038404,-166.66,0.0001497,2]
[392902822,1762119038415,-500.0,0.00014973,2]
[392902823,1762119038425,-500.0,0.00014973,2]
[392902824,1762119038437,-518.83041434,0.00014973,2]
[392902825,1762119038447,-500.0,0.00014973,2]
[392902826,1762119038458,-500.0,0.00014973,2]
[392902827,1762119038468,-500.0,0.00014973,2]
[392902828,1762119038479,-527.20712857,0.00014973,2]
[392902829,1762119038490,-500.0,0.00014973,2]
[392902830,1762119038501,-500.0,0.00014973,2]
[392902831,1762119038511,-500.0,0.00014973,2]
[392902832,1762119038522,-500.0,0.00014973,2]
[392902833,1762119038532,-502.49665094,0.00014973,2]
[392902834,1762119038542,-500.0,0.00014973,2]
[392902835,1762119038552,-500.0,0.00014973,2]
[392902836,1762119038562,-260.99872315,0.00014973,2]
[392902837,1762119038571,-34930.71010463,0.0001498,2]
[392902838,1762119038581,-573.0,0.00014986,2]
[392902839,1762119038591,-607.0,0.00014986,2]
[392902840,1762119038601,-820.0,0.00014986,2]
[392902841,1762119038611,-168.0,0.00014992,2]
[392902842,1762119038621,-500.0,0.00014996,2]
[392902843,1762119038631,-70148.5460079,0.00014997,2]
[392902844,1762119038641,-500.0,0.00014999,2]
[392902845,1762119038650,-150.0,0.00014999,2]
[392902846,1762119038660,-150.0,0.00014999,2]
[392902847,1762119038670,-513.0,0.00014999,2]
[392902848,1762119038680,-150.0,0.00014999,2]
[392902849,1762119038690,-150.0,0.00014999,2]
[392902850,1762119038700,-150.0,0.00014999,2]
[392902851,1762119038710,-562.0,0.00015,2]
[392902852,1762119038720,-152.0,0.00015,2]
[392902853,1762119038730,-152.0,0.00015,2]
[392902854,1762119038740,-152.0,0.00015,2]
[392902855,1762119038751,-152.0,0.00015,2]
[392902856,1762119038761,-152.0,0.00015,2]
[392902857,1762119038771,-825.0,0.00015,2]
[392902858,1762119038781,-152.0,0.00015,2]
[392902859,1762119038791,-825.0,0.00015,2]
[392902860,1762119038801,-152.0,0.00015,2]
[392902861,1762119038811,-152.0,0.00015,2]
[392902862,1762119038821,-825.0,0.00015,2]
[392902863,1762119038831,-152.0,0.00015,2]
[392902864,1762119038841,-152.0,0.00015,2]
[392902865,1762119038851,-825.0,0.00015,2]
[392902866,1762119038861,-152.0,0.00015,2]
[392902867,1762119038871,-825.0,0.00015,2]
[392902868,1762119038881,-152.0,0.00015,2]
[392902869,1762119038891,-152.0,0.00015,2]
[392902870,1762119038908,-152.0,0.00015,2]
[392902871,1762119038921,-1871195.27020389,0.00015,2]
[392902872,1762119038935,-5392.2371941,0.00015,2]
[392902873,1762119038947,-15976.2969355,0.00015,2]
[392902874,1762119038959,-18306.4692951,0.00015,2]
[392902875,1762119038970,-3597.49096773,0.00015,2]
[392902876,1762119038982,-299.99745891,0.00015,2]
[392902877,1762119038999,-853.71655329,0.00015,2]
[392902878,1762119039011,-846.47912205,0.00015,2]
[392902879,1762119039096,500.0,0.00030136,120]
[392902880,1762119039171,500.0,0.00030136,120]
[392902885,1762119039517,500.0,0.00030136,120]
[392902888,1762119040095,-1099.3325537,0.0001491,2]
[392902889,1762119040105,-544.90783643,0.0001491,2]
[392902890,1762119040116,-1595.042449,0.0001491,2]
[392902891,1762119040184,500.0,0.00030136,120]
[392902892,1762119040196,-2363.57924898,0.0001491,2]
[392902893,1762119040266,500.0,0.00030136,120]
[392902895,1762119040300,-611.78417651,0.0001491,2]
[392902897,1762119040311,-254.35373538,0.0001491,2]
[392902898,1762119040320,-671.06279952,0.00015,2]
[392902899,1762119040331,-1145.2843297,0.00015,2]
[392902900,1762119040407,-353.69976327,0.00015,2]
[392902903,1762119041134,623.94,0.00030136,120]
[392902904,1762119041672,500.0,0.00030136,120]
[392902905,1762119041904,500.0,0.00030136,120]
[392902906,1762119041974,500.0,0.00030136,120]
[392902907,1762119043381,-8699.28520391,0.00015,2]
[392902908,1762119043411,-1867.67668,0.00015,2]
[392902909,1762119043468,-316.47033406,0.00015,2]
[392902910,1762119043479,-521.37966348,0.00015,2]
[392902913,1762119044019,500.0,0.00030136,120]
[392902914,1762119044217,1000.0,0.00013699,2]
[392902915,1762119044596,500.0,0.00030136,120]
[392902916,1762119044664,500.0,0.00030136,120]
[392902917,1762119045081,500.0,0.00030136,120]
[392902918,1762119045297,500.0,0.00030136,120]
[392902919,1762119045438,567.94,0.00030136,120]
[392902921,1762119045860,500.0,0.00030136,120]
[392902922,1762119045896,-3349.00839406,0.00015,2]
[392902923,1762119045907,-281.01579999,0.00015,2]
[392902924,1762119046628,500.0,0.00030136,120]
[392902925,1762119046740,589.29,0.00030136,120]
[392902926,1762119046808,535.99405355,0.00030136,120]
[392902927,1762119046914,500.0,0.00030136,120]
[392902928,1762119047027,500.0,0.00030136,120]
[392902929,1762119047112,500.0,0.00030136,120]
[392902930,1762119048135,500.0,0.00030136,120]
[392902931,1762119048432,500.0,0.00030136,120]
[392902932,1762119048513,519.22370653,0.00030136,120]
[392902934,1762119048995,500.0,0.00030136,120]
[392902935,1762119049107,500.0,0.00030136,120]
[392902936,1762119049183,500.0,0.00030136,120]
[392902937,1762119049440,764.5,0.00030136,120]
[392902938,1762119050517,500.0,0.00030136,120]
[392902939,1762119050655,500.0,0.00030136,120]
[392902940,1762119051049,1000.0,0.00030136,120]
[392902941,1762119051120,500.0,0.00030136,120]
[392902942,1762119051646,537.1,0.00030136,120]
[392902943,1762119053304,500.0,0.00030136,120]
[392902944,1762119054018,675.42,0.00030136,120]
[392902945,1762119054060,2527.49306128,0.00014,2]
[392902946,1762119054980,764.96,0.00030136,120]
[392902947,1762119055057,719.61,0.00030136,120]
[392902948,1762119056054,500.0,0.00030136,120]
[392902949,1762119056391,500.0,0.00030136,120]
[392902951,1762119057007,500.0,0.00030136,120]
[392902953,1762119058119,648.01,0.00030136,120]
[392902954,1762119058520,500.0,0.00030136,120]
[392902955,1762119058619,500.0,0.00030136,120]
[392902956,1762119058945,500.0,0.00030136,120]
[392902957,1762119060144,500.0,0.00030136,120]
[392902958,1762119061582,500.0,0.00030136,120]
[392902959,1762119062136,500.0,0.00030136,120]
[392902960,1762119062286,500.0,0.00030136,120]
[392902961,1762119062358,500.0,0.00030136,120]
[392902962,1762119063260,500.0,0.00030136,120]
[392902963,1762119063335,500.0,0.00030136,120]
[392902964,1762119063718,500.0,0.00030136,120]
[392902965,1762119065456,500.0,0.00030136,120]
[392902966,1762119065608,500.0,0.00030136,120]
[392902967,1762119065678,671.65,0.00030136,120]
[392902968,1762119066469,500.0,0.00030136,120]
[392902969,1762119066550,284.46,0.00013699,2]
[392902970,1762119066686,500.0,0.00030136,120]
[392902971,1762119067498,500.0,0.00030136,120]
[392902972,1762119068290,500.0,0.00030136,120]
[392902973,1762119068458,394.59563361,0.00030136,120]
[392902974,1762119069383,500.0,0.00030136,120]
[392902975,1762119069579,500.0,0.00030136,120]
[392902976,1762119071394,646.82,0.00030136,120]
[392902977,1762119071493,500.0,0.00030136,120]
[392902978,1762119072220,452.8744777,0.00030136,120]
[392902979,1762119072352,500.0,0.00030136,120]
[392902980,1762119072546,500.0,0.00030136,120]
[392902981,1762119073273,500.0,0.00030136,120]
[392902982,1762119074053,500.0,0.00030136,120]
[392902983,1762119075269,544.94295665,0.00030136,120]
[392902984,1762119076442,500.0,0.00030136,120]
[392902985,1762119076627,500.0,0.00030136,120]
[392902986,1762119076915,500.0,0.00030136,120]
[392902987,1762119077282,500.0,0.00030136,120]
[392902988,1762119077574,500.0,0.00030136,120]
[392902989,1762119078638,701.93,0.00030136,120]
[392902990,1762119079321,500.0,0.00030136,120]
[392902991,1762119079881,500.0,0.00030136,120]
[392902992,1762119079973,355.98208258,0.00030136,120]
[392902993,1762119080628,500.0,0.00030136,120]
[392902994,1762119080701,500.0,0.00030136,120]
[392902995,1762119080792,500.0,0.00030136,120]
[392902996,1762119081790,500.0,0.00030136,120]
[392902997,1762119083488,500.0,0.00030136,120]
[392902998,1762119083740,641.24,0.00030136,120]
[392902999,1762119083811,570.65,0.00030136,120]
[392903000,1762119083968,500.0,0.00030136,120]
[392903001,1762119084368,539.67102215,0.00030136,120]
[392903002,1762119084619,500.0,0.00030136,120]
[392903003,1762119085335,500.0,0.00030136,120]
[392903004,1762119086293,500.0,0.00030136,120]
[392903005,1762119086703,500.0,0.00030136,120]
[392903006,1762119086776,500.0,0.00030136,120]
[392903007,1762119087051,500.0,0.00030136,120]
[392903008,1762119088702,338.63774491,0.00030136,120]
[392903009,1762119088837,517.89277274,0.00030136,120]
[392903010,1762119088977,500.0,0.00030136,120]
[392903011,1762119089692,500.0,0.00030136,120]
[392903012,1762119090121,500.0,0.00030136,120]
[392903013,1762119090588,500.0,0.00030136,120]
[392903014,1762119091456,623.64795604,0.00030136,120]
[392903018,1762119092154,500.0,0.00030136,120]
[392903019,1762119092262,500.0,0.00030136,120]
[392903020,1762119092912,500.0,0.00030136,120]
[392903021,1762119093443,500.0,0.00030136,120]
[392903022,1762119094117,587.95,0.00030136,120]
[392903023,1762119094469,587.4660904,0.00030136,120]
[392903024,1762119094545,630.43,0.00030136,120]
[392903025,1762119097469,500.0,0.00030136,120]
[392903026,1762119099251,500.0,0.00030136,120]
[392903027,1762119099415,500.0,0.00030136,120]
[392903028,1762119099551,500.0,0.00030136,120]
[392903029,1762119099876,528.26,0.00030136,120]
[392903030,1762119100608,500.0,0.00030136,120]
[392903031,1762119100768,500.0,0.00030136,120]
[392903032,1762119100947,569.44653149,0.00030136,120]
[392903033,1762119102557,500.0,0.00030136,120]
[392903035,1762119104242,500.0,0.00030136,120]
[392903036,1762119106278,500.0,0.00030136,120]
[392903037,1762119106656,500.0,0.00030136,120]
[392903038,1762119106725,500.0,0.00030136,120]
[392903039,1762119106800,560.13,0.00030136,120]
[392903040,1762119107005,569.18,0.00030136,120]
[392903041,1762119107513,500.0,0.00030136,120]
[392903042,1762119107636,539.32150229,0.00030136,120]
[392903043,1762119108533,500.0,0.00030136,120]
[392903044,1762119109662,500.0,0.00030136,120]
[392903045,1762119109798,500.0,0.00030136,120]
[392903046,1762119109921,500.0,0.00030136,120]
[392903048,1762119111178,500.0,0.00030136,120]
[392903049,1762119111582,500.0,0.00030136,120]
[392903050,1762119111780,500.0,0.00030136,120]
[392903051,1762119112224,500.0,0.00030136,120]
[392903052,1762119112532,500.0,0.00030136,120]
[392903053,1762119113940,500.0,0.00030136,120]
[392903054,1762119114237,500.0,0.00030136,120]
[392903055,1762119114307,500.0,0.00030136,120]
[392903056,1762119114799,500.0,0.00030136,120]
[392903057,1762119115256,500.0,0.00030136,120]
[392903058,1762119116012,500.0,0.00030136,120]
[392903059,1762119116085,500.0,0.00030136,120]
[392903060,1762119116163,500.0,0.00030136,120]
[392903061,1762119116617,500.0,0.00030136,120]
[392903062,1762119117799,500.0,0.00030136,120]
[392903063,1762119118688,565.27575904,0.00030136,120]
[392903064,1762119118836,513.21,0.00030136,120]
[392903065,1762119119019,500.0,0.00030136,120]
[392903066,1762119119309,500.0,0.00030136,120]
[392903067,1762119119571,500.0,0.00030136,120]
[392903068,1762119119643,765.8,0.00030136,120]
[392903069,1762119119785,500.0,0.00030136,120]
[392903070,1762119120613,169.65673266,0.00030136,120]
[392903071,1762119120810,500.0,0.00030136,120]
[392903072,1762119122464,500.0,0.00030136,120]
[392903073,1762119122882,500.0,0.00030136,120]
[392903074,1762119123914,500.0,0.00030136,120]
[392903075,1762119124036,500.0,0.00030136,120]
[392903076,1762119124172,500.0,0.00030136,120]
[392903077,1762119124379,607.04,0.00030136,120]
[392903078,1762119125527,500.0,0.00030136,120]
[392903079,1762119126394,500.0,0.00030136,120]
[392903081,1762119126867,947.4,0.00030136,120]
[392903082,1762119128418,500.0,0.00030136,120]
[392903083,1762119128499,1375.25,0.00030136,120]
[392903084,1762119129213,500.0,0.00030136,120]
[392903085,1762119129413,572.42051789,0.00030136,120]
[392903086,1762119129619,689.77,0.00030136,120]
[392903087,1762119130571,500.0,0.00030136,120]
[392903088,1762119131754,500.0,0.00030136,120]
[392903089,1762119132863,500.0,0.00030136,120]
[392903090,1762119133900,500.0,0.00030136,120]
[392903091,1762119134674,500.0,0.00030136,120]
[392903092,1762119134744,258.1222173,0.00030136,120]
[392903093,1762119135126,500.0,0.00030136,120]
[392903094,1762119135615,500.0,0.00030136,120]
[392903095,1762119135916,684.74,0.00030136,120]
[392903096,1762119136324,500.0,0.00030136,120]
[392903097,1762119136486,622.53868671,0.00030136,120]
[392903098,1762119139407,500.0,0.00030136,120]
[392903099,1762119140143,500.0,0.00030136,120]
[392903101,1762119141084,500.0,0.00030136,120]
[392903102,1762119141949,500.0,0.00030136,120]
[392903103,1762119142089,500.0,0.00030136,120]
[392903104,1762119143171,427.39367727,0.00030136,120]
[392903105,1762119144219,500.0,0.00030136,120]
[392903106,1762119144325,542.44,0.00030136,120]
[392903107,1762119145215,500.0,0.00030136,120]
[392903108,1762119145929,500.0,0.00030136,120]
[392903109,1762119146860,500.0,0.00030136,120]
[392903110,1762119147685,500.0,0.00030136,120]
[392903111,1762119148807,970.06,0.00030136,120]
[392903112,1762119149006,500.0,0.00030136,120]
[392903113,1762119149570,538.16524269,0.00030136,120]
[392903114,1762119149631,500.0,0.00030136,120]
[392903115,1762119149897,500.0,0.00030136,120]
[392903116,1762119150335,500.0,0.00030136,120]
[392903117,1762119150515,369.74776812,0.00030136,120]
[392903118,1762119150631,500.0,0.00030136,120]
[392903119,1762119150958,519.70666946,0.00030136,120]
[392903120,1762119151833,500.0,0.00030136,120]
[392903121,1762119152682,500.0,0.00030136,120]
[392903122,1762119153652,500.0,0.00030136,120]
[392903123,1762119154007,500.0,0.00030136,120]
[392903124,1762119156040,831.27,0.00030136,120]
[392903125,1762119156116,500.0,0.00030136,120]
[392903127,1762119157124,500.0,0.00030136,120]
[392903128,1762119157241,500.0,0.00030136,120]
[392903129,1762119158222,500.0,0.00030136,120]
[392903130,1762119159051,500.0,0.00030136,120]
[392903131,1762119159392,500.0,0.00030136,120]
[392903132,1762119160508,500.0,0.00030136,120]
[392903133,1762119160608,500.0,0.00030136,120]
[392903134,1762119160768,500.0,0.00030136,120]
[392903135,1762119160840,500.0,0.00030136,120]
[392903136,1762119160929,500.0,0.00030136,120]
[392903137,1762119161017,233.19439877,0.00030136,120]
[392903138,1762119161157,500.0,0.00030136,120]
[392903139,1762119161808,500.0,0.00030136,120]
[392903140,1762119162306,500.0,0.00030136,120]
[392903141,1762119163089,500.0,0.00030136,120]
[392903142,1762119163181,500.0,0.00030136,120]
[392903143,1762119163317,500.0,0.00030136,120]
[392903144,1762119163852,500.0,0.00030136,120]
[392903145,1762119165170,500.0,0.00030136,120]
[392903146,1762119166000,500.0,0.00030136,120]
[392903147,1762119166073,556.14292694,0.00030136,120]
[392903148,1762119166185,500.0,0.00030136,120]
[392903149,1762119166291,530.33,0.00030136,120]
[392903150,1762119166496,500.0,0.00030136,120]
[392903151,1762119167693,500.0,0.00030136,120]
[392903152,1762119170395,500.0,0.00030136,120]
[392903153,1762119170478,592.59,0.00030136,120]
[392903154,1762119170622,500.0,0.00030136,120]
[392903155,1762119171547,548.28,0.00030136,120]
[392903156,1762119172647,153.44020418,0.00030136,120]
[392903157,1762119173190,500.0,0.00030136,120]
[392903158,1762119173260,500.0,0.00030136,120]
[392903159,1762119173327,500.0,0.00030136,120]
[392903160,1762119173387,500.0,0.00030136,120]
[392903162,1762119175009,1530.04,0.00030136,120]
[392903163,1762119176170,500.0,0.00030136,120]
[392903164,1762119176232,500.0,0.00030136,120]
[392903165,1762119176306,500.0,0.00030136,120]
[392903166,1762119176373,500.0,0.00030136,120]
[392903167,1762119176972,540.28292197,0.00030136,120]
[392903168,1762119177984,500.0,0.00030136,120]
[392903169,1762119178217,500.0,0.00030136,120]
[392903170,1762119179040,500.0,0.00030136,120]
[392903171,1762119179819,500.0,0.00030136,120]